fUSD/lending_fUSD_20250118
["ID","MTS","AMOUNT","RATE_DAILY","PERIOD"]
[349396989,1737158524863,348.77,0.00010137,2]
[349396992,1737158666769,39118.29901183,0.000231,120]
[349396994,1737158754649,-163.63,0.00012329,2]
[349396998,1737158832103,-197.79,0.00016712,2]
[349396999,1737158832127,-348.77,0.00016813,2]
[349397000,1737158832147,-10.35569387,0.0001881,2]
[349397001,1737158838101,-708.88521467,0.00016713,2]
[349397002,1737158838123,-708.88521467,0.00017712,2]
[349397003,1737158838144,-169.65430613,0.0001881,2]
[349397004,1737158838168,-1274.72294753,0.0001881,2]
[349397005,1737158843088,-708.88521467,0.0001871,2]
[349397006,1737158843110,-958.44653048,0.0001881,2]
[349397010,1737159031205,150.0,0.00022503,120]
[349397031,1737159032022,-961.96,0.0001699,2]
[349397032,1737159032032,-21666.83052199,0.0001881,2]
[349397033,1737159032042,-250.0,0.00018832,2]
[349397034,1737159032051,-250.0,0.00018894,2]
[349397035,1737159032060,-1500.0,0.00018914,2]
[349397036,1737159032070,-376.95999872,0.00019,2]
[349397037,1737159032080,-459.63,0.00019065,2]
[349397038,1737159032089,-164.7,0.00019209,2]
[349397039,1737159032099,-500.0,0.00019209,2]
[349397040,1737159032108,-500.0,0.00019209,2]
[349397041,1737159032118,-298.35662646,0.00019209,2]
[349397042,1737159032129,-187.82,0.00019228,2]
[349397043,1737159032139,-961.96,0.00019254,2]
[349397044,1737159032148,-500.0,0.00019326,2]
[349397045,1737159032157,-250.0,0.00019585,2]
[349397046,1737159032166,-299.99,0.00019585,7]
[349397047,1737159032175,-3537.5,0.00019588,2]
[349397048,1737159032184,-1000.0,0.00019588,2]
[349397049,1737159032192,-483.25,0.00019617,2]
[349397050,1737159032201,-1736.015,0.00019692,2]
[349397051,1737159032209,-833.3775,0.000197,2]
[349397052,1737159032217,-265.7314,0.000197,2]
[349397053,1737159032225,-220.6107,0.000197,2]
[349397054,1737159032233,-150.0,0.00019726,2]
[349397055,1737159032241,-14675.30825283,0.00019761,2]
[349397056,1737159032254,-739.74148969,0.00019761,2]
[349397057,1737159032337,-4129.67897402,0.00019761,2]
[349397058,1737159032395,-8020.77128346,0.00019761,2]
[349397059,1737159032404,-3981.0,0.00019789,2]
[349397060,1737159032414,-150.0,0.00019789,2]
[349397061,1737159032423,-537.0,0.00019789,2]
[349397062,1737159032435,-336.39,0.000198,2]
[349397063,1737159032444,-2004.4202,0.000198,2]
[349397064,1737159032453,-6875.7147,0.000198,2]
[349397065,1737159032464,-3000.0,0.000198,2]
[349397066,1737159032473,-31687.90103021,0.000198,2]
[349397084,1737159037880,-186.07,0.00018863,2]
[349397085,1737159037890,-3413.93,0.000198,2]
[349397086,1737159037901,-1040.74316979,0.000198,2]
[349397087,1737159037911,-311.7496,0.000198,2]
[349397088,1737159037921,-1000.0,0.000198,2]
[349397089,1737159037931,-1734.64620133,0.000198,2]
[349397090,1737159037942,-507.23194,0.000198,2]
[349397091,1737159037954,-258.12185867,0.000198,2]
[349397092,1737159037964,-8970.2474,0.000199,2]
[349397093,1737159037973,-70271.62974133,0.000199,2]
[349397094,1737159037993,-7490.36837502,0.000199,2]
[349397095,1737159038199,-5900.5374466,0.000199,2]
[349397096,1737159038211,-1509.22856411,0.000199,2]
[349397097,1737159038222,-1383.91575475,0.000199,2]
[349397098,1737159038253,-1136.56463813,0.000199,2]
[349397099,1737159038361,-37879.69689402,0.000199,2]
[349397117,1737159040038,-66.69346801,0.000199,2]
[349397118,1737159040100,-5004.53241803,0.000199,2]
[349397119,1737159040110,-500.0,0.000199,2]
[349397120,1737159040119,-319.59795691,0.000199,2]
[349397121,1737159040128,-203.44614502,0.000199,2]
[349397122,1737159040139,-327.8124967,0.00019999,5]
[349397123,1737159040151,-738.96964081,0.00019999,5]
[349397124,1737159040161,-825.32741436,0.00019999,5]
[349397125,1737159040173,-241.45472315,0.00019999,5]
[349397126,1737159040182,-1001.57377738,0.00019999,5]
[349397127,1737159040194,-65.20836013,0.00019999,5]
[349397128,1737159040204,-975.49163987,0.00019999,5]
[349397139,1737159042938,-91.29049764,0.00019999,5]
[349397140,1737159042948,-1066.78213751,0.00019999,5]
[349397141,1737159042958,-1066.78213751,0.00019999,5]
[349397142,1737159042967,-5130.93040661,0.0002,2]
[349397143,1737159043080,-2712.62814377,0.0002,2]
[349397144,1737159043091,-2961.42746096,0.0002,2]
[349397145,1737159043203,-14575.01398866,0.0002,2]
[349397146,1737159043214,-3000.0,0.0002,2]
[349397147,1737159043223,-200.0,0.0002,2]
[349397148,1737159043233,-8239.98601134,0.0002,2]
[349397154,1737159044186,150.0,0.000135,2]
[349397156,1737159045975,-823.338,0.0002,2]
[349397157,1737159046467,-465.32209833,0.0002,2]
[349398256,1737159580657,160.61,0.00010137,2]
[349398261,1737159929914,4047.60610761,0.0001,2]
[349398262,1737159980634,28474.39231878,9.99e-05,2]
[349398263,1737160031422,-531.483452,0.00018721,2]
[349398264,1737160031461,-186.33,0.00018816,2]
[349398265,1737160031498,-250.0,0.00018837,2]
[349398266,1737160031537,-383.79201539,0.00018852,2]
[349398267,1737160033154,-113.59798461,0.00018852,2]
[349398268,1737160033193,-193.33,0.00018884,2]
[349398269,1737160033227,-111.96097183,0.00019065,2]
[349398270,1737160035474,-138.03902817,0.00019065,2]
[349398271,1737160035496,-214.77291571,0.00019139,2]
[349398272,1737160035516,-185.4,0.0001916,2]
[349398273,1737160035539,-1104.33368917,0.000192,2]
[349398275,1737160083808,77346.80550983,0.0001,2]
[349398305,1737160232145,-1787.0,0.000168,2]
[349398306,1737160232155,-988.02,0.00017105,2]
[349398307,1737160232164,-164.7,0.00018803,2]
[349398308,1737160232174,-880.22,0.00018929,2]
[349398309,1737160232183,-15201.2727,0.000191,2]
[349398310,1737160232192,-8314.72631083,0.000192,2]
[349398311,1737160232202,-3033.47,0.00019218,2]
[349398312,1737160232211,-23900.0,0.00019223,2]
[349398313,1737160232221,-200.0,0.00019233,2]
[349398314,1737160232231,-1008.69,0.00019239,2]
[349398315,1737160232240,-1000.0,0.00019243,2]
[349398316,1737160232249,-250.0,0.00019278,2]
[349398317,1737160232259,-690.02383568,0.00019369,2]
[349398318,1737160232270,-297.99616432,0.00019369,2]
[349398319,1737160232281,-2034.0,0.00019406,2]
[349398320,1737160232291,-187.44,0.00019519,2]
[349398321,1737160232300,-491.54,0.00019606,2]
[349398322,1737160232309,-166.26,0.00019611,2]
[349398323,1737160232318,-11505.55,0.00019611,2]
[349398324,1737160232327,-29999.99,0.00019611,2]
[349398325,1737160232337,-500.0,0.00019619,2]
[349398326,1737160232346,-1779.912,0.000197,2]
[349398327,1737160232356,-180.65,0.00019785,2]
[349398328,1737160232365,-338.12250111,0.000198,2]
[349398329,1737160232376,-528.91979889,0.000198,2]
[349398330,1737160232385,-9266.7167,0.000198,2]
[349398331,1737160232395,-2414.8469,0.000198,2]
[349398332,1737160232404,-24299.14692206,0.000198,2]
[349398333,1737160232424,-7241.42917794,0.000198,2]
[349398334,1737160232434,-4521.6963,0.000198,2]
[349398335,1737160232443,-1234.78171288,0.000198,2]
[349398336,1737160232483,-1279.3225786,0.000198,2]
[349398337,1737160232492,-157.07281725,0.000198,2]
[349398338,1737160232501,-4199.97117476,0.000198,2]
[349398341,1737160232663,-586.83695503,0.000198,2]
[349398342,1737160232728,-7689.59813395,0.000198,2]
[349398349,1737160238057,-1063.69296261,0.000198,2]
[349398350,1737160238273,-79864.53397365,0.000198,2]
[349398351,1737160238282,-3000.0,0.000198,2]
[349398352,1737160238292,-1727.0766,0.00019899,2]
[349398353,1737160238301,-1000.0,0.000199,2]
[349398354,1737160238311,-5000.0,0.000199,2]
[349398355,1737160238320,-2500.0,0.000199,2]
[349398356,1737160238330,-500.0,0.000199,2]
[349398357,1737160238340,-1000.0,0.000199,2]
[349398358,1737160238350,-50202.711,0.000199,2]
[349398359,1737160238359,-1702.9092,0.000199,2]
[349398360,1737160238368,-157.07281725,0.000199,2]
[349398361,1737160238377,-252.41448973,0.000199,2]
[349398362,1737160238387,-172.04835509,0.000199,2]
[349398363,1737160238396,-179.57865484,0.000199,2]
[349398364,1737160238405,-200.51803796,0.000199,2]
[349398365,1737160238415,-661.61774357,0.00019999,5]
[349398366,1737160238423,-60504.82421661,0.0002,2]
[349398368,1737160238443,-488.45942115,0.0002,2]
[349398369,1737160240325,-3923.64278403,0.0002,2]
[349398370,1737160240336,-370.45961368,0.0002,2]
[349398371,1737160240349,-2258.76999997,0.0002,2]
[349398382,1737160243254,-3547.7542258,0.0002,2]
[349398383,1737160243414,-2109.99995,0.0002,2]
[349398384,1737160243425,-601.49059648,0.0002,2]
[349398385,1737160246047,-1200.0241502,0.000198,2]
[349398386,1737160246209,-332.62431893,0.000198,2]
[349398391,1737160485431,375.78,0.00010137,2]
[349398398,1737160830813,150.0,0.00022738,120]
[349398402,1737160896693,390.0,0.000231,120]
[349398413,1737161249189,-1652.73774016,0.00016661,2]
[349398414,1737161250105,-1345.60827173,0.00016661,2]
[349398424,1737161390922,313.89,0.00010137,2]
[349398444,1737161432367,-3700.0,0.00016713,2]
[349398446,1737161432478,-10883.49707535,0.00016713,2]
[349398447,1737161432487,-951.98,0.0001676,2]
[349398448,1737161432497,-375.78,0.00016813,2]
[349398449,1737161432507,-313.89,0.00016813,2]
[349398450,1737161432520,-163.28,0.00018408,2]
[349398451,1737161432529,-163.28,0.00018423,2]
[349398452,1737161432539,-1688.21,0.00018425,2]
[349398453,1737161432548,-163.28,0.00018439,2]
[349398454,1737161432557,-2952.03,0.00018449,2]
[349398455,1737161432567,-163.28,0.00018454,2]
[349398456,1737161432577,-163.28,0.00018469,2]
[349398457,1737161432586,-163.28,0.00018485,2]
[349398458,1737161432596,-163.28,0.000185,2]
[349398459,1737161432605,-2589.56,0.00018515,2]
[349398460,1737161432615,-8487.49,0.00018515,2]
[349398461,1737161432759,-167.06,0.00018536,2]
[349398462,1737161432771,-250.0,0.00018539,2]
[349398463,1737161432781,-200.0,0.0001858,2]
[349398464,1737161432790,-178.87,0.00018597,2]
[349398465,1737161432800,-6268.0,0.00018641,2]
[349398466,1737161432809,-505.29,0.00018649,2]
[349398467,1737161432819,-430.37,0.00018793,2]
[349398468,1737161432828,-250.0,0.00018875,2]
[349398469,1737161432838,-992.04815422,0.00018903,2]
[349398470,1737161432848,-250.0,0.00018931,2]
[349398471,1737161432858,-300.0,0.00018956,2]
[349398473,1737161432867,-23900.0,0.00018957,2]
[349398476,1737161432877,-957.54,0.00019003,2]
[349398479,1737161432886,-951.98,0.00019024,2]
[349398482,1737161432896,-2177.89,0.0001911,2]
[349398484,1737161432905,-500.0,0.00019158,2]
[349398486,1737161432914,-163.29,0.00019158,2]
[349398488,1737161432924,-1000.0,0.00019203,2]
[349398491,1737161432934,-4140.0,0.00019212,10]
[349398492,1737161432943,-163.29,0.00019254,2]
[349398495,1737161432952,-178.87,0.00019285,2]
[349398497,1737161432962,-1569.87,0.00019323,2]
[349398499,1737161432971,-24996.77,0.00019339,2]
[349398501,1737161432980,-1164.75,0.00019339,2]
[349398503,1737161432989,-2589.56,0.00019441,2]
[349398505,1737161432999,-1423.93,0.00019682,2]
[349398507,1737161433008,-4662.5581,0.000197,2]
[349398509,1737161433018,-4142.02653087,0.000198,2]
[349398511,1737161433028,-310.04,0.000198,2]
[349398513,1737161433037,-1000.0,0.000198,2]
[349398515,1737161433047,-1505.03612221,0.000198,2]
[349398517,1737161433057,-500.0,0.00019839,2]
[349398519,1737161433066,-500.0,0.0001984,2]
[349398521,1737161433075,-1505.03612219,0.00019897,2]
[349398523,1737161433084,-524.1479,0.000199,2]
[349398525,1737161433093,-6103.1518,0.000199,2]
[349398527,1737161433105,-19566.5225,0.000199,2]
[349398529,1737161433115,-5000.0,0.000199,2]
[349398531,1737161433124,-409.7688,0.000199,2]
[349398533,1737161433134,-1000.0,0.000199,2]
[349398535,1737161433144,-263.53033611,0.000199,2]
[349398538,1737161433154,-381.5918501,0.00019918,2]
[349398540,1737161433163,-263.53033605,0.00019969,2]
[349398542,1737161433172,-178.87,0.00019973,2]
[349398544,1737161433183,-1505.03612219,0.00019994,2]
[349398546,1737161433194,-216.76781932,0.0002,2]
[349398548,1737161433203,-232052.08312595,0.0002,2]
[349398550,1737161433213,-373.0,0.0002,2]
[349398552,1737161433223,-500.0,0.0002,2]
[349398554,1737161433232,-500.0,0.0002,2]
[349398556,1737161433242,-500.0,0.0002,2]
[349398558,1737161433251,-430.05538162,0.0002,2]
[349398560,1737161433261,-947.44,0.0002,2]
[349398562,1737161433273,-6579.98770157,0.0002,2]
[349398564,1737161433282,-1706.83502169,0.0002,2]
[349398565,1737161433295,-489.16250671,0.0002,2]
[349398566,1737161433306,-1469.6424716,0.0002,2]
[349398567,1737161433316,-2000.0,0.0002,2]
[349398568,1737161433325,-500.0,0.0002,7]
[349398569,1737161433335,-500.0,0.0002,7]
[349398570,1737161433344,-500.0,0.0002,7]
[349398571,1737161433355,-500.0,0.0002,7]
[349398572,1737161433364,-500.0,0.0002,7]
[349398573,1737161433374,-200.0,0.0002,2]
[349398574,1737161433384,-200.0,0.0002,2]
[349398575,1737161433393,-3000.0,0.0002,2]
[349398576,1737161433402,-1703.3670113,0.0002002,2]
[349398577,1737161433412,-15732.79496916,0.00020034,2]
[349398578,1737161433435,-1547.1,0.00020034,2]
[349398579,1737161433447,-334.78597009,0.00020034,2]
[349398580,1737161433462,-695.69880185,0.00020034,2]
[349398586,1737161438470,-15411.06141303,0.00020034,2]
[349398596,1737161440489,-4804.15723346,0.00020034,2]
[349398597,1737161440598,-3133.2063945,0.00020034,2]
[349398607,1737161443512,-419.37874704,0.00020034,2]
[349398608,1737161443526,-573.822,0.00020034,2]
[349398609,1737161443673,-1741.3,0.00020034,2]
[349398610,1737161443684,-33064.95794958,0.00020034,2]
[349398613,1737161446442,-3776.99334266,0.00020034,2]
[349398614,1737161446454,-8734.71459647,0.00020034,2]
[349398615,1737161446465,-1629.694975,0.00020034,2]
[349398616,1737161446477,-685.56376058,0.00020034,2]
[349398617,1737161446720,-404.50349173,0.00020034,2]
[349398623,1737162211211,160.63,0.00010137,2]
[349398625,1737162335494,748.0,0.000231,120]
[349398628,1737162435262,-197.8,0.00016712,2]
[349398629,1737162435286,-915.82,0.00017257,2]
[349398630,1737162435307,-310.5,0.00018993,2]
[349398631,1737162435329,-241.75967302,0.00019006,2]
[349398632,1737162436140,-70.60032698,0.00019006,2]
[349398633,1737162436161,-250.0,0.000191,2]
[349398634,1737162436182,-315.19101289,0.00019109,2]
[349398635,1737162443099,-164.7,0.00019109,2]
[349398636,1737162443120,-1476.01,0.00019109,2]
[349398637,1737162443143,-150.0,0.00019116,2]
[349398638,1737162443164,-1004.65387379,0.00019152,2]
[349398677,1737162637434,-957.32994131,0.00019041,2]
[349398678,1737162637715,-1169.3257027,0.00019041,2]
[349398679,1737162637727,-250.0,0.00019126,2]
[349398680,1737162637736,-1004.66,0.00019141,2]
[349398681,1737162637745,-1500.0,0.00019141,2]
[349398682,1737162637756,-178.87,0.0001929,2]
[349398683,1737162637775,-1672.86901725,0.0001929,2]
[349398685,1737162637791,-1553.73,0.00019296,2]
[349398686,1737162637809,-250.0,0.0001935,2]
[349398687,1737162637827,-621.9,0.0001935,2]
[349398688,1737162637840,-1735.94,0.0001935,2]
[349398689,1737162637858,-200.0,0.00019356,2]
[349398690,1737162637876,-23900.0,0.00019432,2]
[349398691,1737162637894,-444.96,0.00019445,2]
[349398692,1737162637913,-915.82,0.00019521,2]
[349398693,1737162637929,-158.3770943,0.00019593,2]
[349398694,1737162637947,-1573.148,0.00019593,2]
[349398695,1737162637961,-611.8496001,0.00019633,2]
[349398696,1737162637978,-150.0,0.00019651,2]
[349398697,1737162637991,-3000.0,0.0001983,2]
[349398698,1737162638005,-500.0,0.00019874,2]
[349398699,1737162638022,-1000.0,0.000199,2]
[349398700,1737162638037,-500.0,0.0002,2]
[349398702,1737162638052,-630.30617688,0.0002,2]
[349398704,1737162638067,-3875.0498257,0.0002003,2]
[349398706,1737162638082,-1873.2155213,0.00020044,2]
[349398708,1737162638096,-1174.0,0.00020054,2]
[349398710,1737162638112,-3899.0,0.00020054,2]
[349398711,1737162638127,-150.0,0.00020054,2]
[349398712,1737162638142,-1105.0,0.00020054,2]
[349398713,1737162638157,-2209.7787035,0.00020058,2]
[349398714,1737162638172,-438.14,0.000201,2]
[349398715,1737162638187,-300.0,0.000201,2]
[349398716,1737162638202,-438.14,0.000201,2]
[349398717,1737162638216,-1553.73,0.00020261,2]
[349398718,1737162638231,-1000.0,0.000203,2]
[349398719,1737162638246,-231.0,0.000203,2]
[349398720,1737162638261,-365.0,0.000203,2]
[349398721,1737162638275,-250.0,0.00020455,2]
[349398722,1737162638290,-163.091,0.00020458,2]
[349398723,1737162638305,-168.0,0.00020458,2]
[349398724,1737162638318,-150.0,0.00020458,2]
[349398725,1737162638333,-158.208,0.00020458,2]
[349398726,1737162638347,-150.0,0.00020458,2]
[349398727,1737162638363,-278.394,0.00020458,2]
[349398728,1737162638377,-181.895,0.00020458,2]
[349398729,1737162638392,-150.0,0.00020458,2]
[349398730,1737162638407,-205.167,0.00020458,2]
[349398731,1737162638422,-154.33,0.00020458,2]
[349398732,1737162638435,-199.819,0.00020458,2]
[349398733,1737162638450,-151.359,0.00020458,2]
[349398734,1737162638465,-2017.115,0.00020458,2]
[349398735,1737162638480,-1288.759,0.00020458,2]
[349398736,1737162638495,-212.66,0.00020458,2]
[349398737,1737162638510,-567.0,0.00020458,2]
[349398738,1737162638525,-150.0,0.00020458,2]
[349398739,1737162638539,-635.0,0.00020458,2]
[349398740,1737162638554,-1862.0,0.00020458,2]
[349398741,1737162638568,-3048.783,0.00020458,2]
[349398742,1737162638583,-907.0,0.00020458,2]
[349398743,1737162638598,-1260.0,0.00020458,2]
[349398744,1737162638617,-820.0,0.00020458,2]
[349398745,1737162638631,-537.0,0.00020458,2]
[349398746,1737162638647,-150.0,0.00020458,2]
[349398747,1737162638662,-3981.0,0.00020458,2]
[349398748,1737162638676,-5000.0,0.00020486,2]
[349398749,1737162638693,-168.2763265,0.00020487,2]
[349398750,1737162638708,-466.04340905,0.00020487,2]
[349398751,1737162638723,-179.57865483,0.00020487,2]
[349398752,1737162638738,-319.59795679,0.00020487,2]
[349398753,1737162638754,-639.44253735,0.00020519,2]
[349398754,1737162638768,-319.59795679,0.00020521,2]
[349398755,1737162638784,-874.78,0.00020548,2]
[349398756,1737162638799,-150.0,0.00020548,2]
[349398757,1737162638813,-319.59795679,0.00020556,2]
[349398758,1737162638949,-500.0,0.00020573,2]
[349398759,1737162638998,-528.18,0.00020585,2]
[349398760,1737162639008,-5251692.84772166,0.00020586,2]
[349398761,1737162639018,-379106.16915239,0.00020587,2]
[349398764,1737162639756,-871.82,0.00020587,2]
[349398765,1737162639816,-4800.0,0.00020587,2]
[349398823,1737162642549,-1000.0,0.00019131,2]
[349398824,1737162642559,-39728.90957197,0.00020587,2]
[349398825,1737162642612,-14141.03151067,0.00020587,2]
[349398826,1737162642733,-413.0262257,0.00020587,2]
[349398884,1737162645530,-412.62134339,0.00020587,2]
[349398885,1737162645542,-303.92300001,0.00020587,2]
[349398886,1737162645654,-259.866,0.00020587,2]
[349398962,1737163041951,169.79,0.00010137,2]
[349398964,1737163508539,188636.86606378,0.00012,2]
[349398965,1737163628115,-531.483452,0.00011939,2]
[349398966,1737163628139,-300.0,0.00011999,2]
[349398967,1737163628162,-664.51719558,0.00012,2]
[349398968,1737163629102,-1658.74755181,0.00012,2]
[349398969,1737163649136,-448.25711938,0.00012,2]
[349398982,1737163831997,-300.0,0.00011999,2]
[349398983,1737163832007,-176.67512439,0.00012,2]
[349398984,1737163832169,-2921.9975213,0.00012,2]
[349398985,1737163832181,-484.3375096,0.00012,2]
[349399160,1737163839891,-584.205,0.00012,2]
[349399178,1737163840069,-15335.93517361,0.00012,2]
[349399180,1737163840081,-3298.01392005,0.00012,2]
[349399190,1737163840310,-42182.8644674,0.00012,2]
[349399191,1737163840320,-214.77291571,0.00013072,2]
[349399192,1737163840329,-420.0,0.00013172,2]
[349399193,1737163840338,-587.0,0.0001446,2]
[349399194,1737163840348,-511.799995,0.000154,2]
[349399195,1737163840358,-159.15,0.00015405,2]
[349399196,1737163840367,-823.0,0.00015874,2]
[349399197,1737163840377,-1611.0,0.000174,2]
[349399198,1737163840388,-927.0,0.00017426,2]
[349399199,1737163840398,-824.23,0.00017596,2]
[349399200,1737163840407,-21374.11177721,0.00018,2]
[349399201,1737163840417,-250.0,0.00018544,2]
[349399202,1737163840427,-186.33,0.00018841,2]
[349399203,1737163840437,-185.4,0.00018842,2]
[349399204,1737163840447,-250.0,0.0001917,2]
[349399205,1737163840456,-249.90331304,0.000192,2]
[349399207,1737163840466,-249.9033128,0.000192,2]
[349399208,1737163840476,-249.9033128,0.000192,2]
[349399209,1737163840485,-249.9033128,0.000192,2]
[349399210,1737163840495,-249.9033128,0.000192,2]
[349399211,1737163840505,-249.9033128,0.000192,2]
[349399212,1737163840515,-249.9033128,0.000192,2]
[349399213,1737163840524,-249.9033128,0.000192,2]
[349399214,1737163840534,-249.9033128,0.000192,2]
[349399215,1737163840543,-180.65,0.00019201,2]
[349399216,1737163840553,-1000.0,0.00019415,2]
[349399217,1737163840562,-150.0,0.00019482,2]
[349399218,1737163840572,-738.0,0.00019537,2]
[349399219,1737163840581,-167.06,0.00019563,2]
[349399220,1737163840591,-386.04,0.00019601,2]
[349399221,1737163840601,-1036.42,0.00019601,2]
[349399222,1737163840611,-250.0,0.0001961,2]
[349399223,1737163840620,-23900.0,0.00019615,2]
[349399224,1737163840630,-179.46,0.00019727,2]
[349399225,1737163840640,-824.23,0.0001986,2]
[349399226,1737163840649,-305.9248001,0.00020175,2]
[349399227,1737163840659,-1258.518,0.00020175,2]
[349399228,1737163840669,-2500.0,0.00020191,2]
[349399229,1737163840678,-635.0,0.00020197,2]
[349399230,1737163840688,-567.0,0.00020197,2]
[349399231,1737163840697,-150.0,0.00020197,2]
[349399232,1737163840707,-1862.0,0.00020197,2]
[349399233,1737163840716,-907.0,0.00020197,2]
[349399234,1737163840726,-2945.0,0.00020197,2]
[349399235,1737163840736,-1260.0,0.00020197,2]
[349399236,1737163840745,-820.0,0.00020197,2]
[349399237,1737163840755,-537.0,0.00020197,2]
[349399238,1737163840764,-509.24,0.00020197,2]
[349399239,1737163840774,-150.0,0.00020197,2]
[349399240,1737163840783,-1105.0,0.00020197,2]
[349399241,1737163840793,-2025.809,0.00020197,2]
[349399242,1737163840802,-151.194,0.00020197,2]
[349399243,1737163840811,-716.874,0.00020197,2]
[349399244,1737163840821,-3900.0,0.00020197,2]
[349399245,1737163840831,-166.85,0.00020239,2]
[349399246,1737163840843,-1053.52528556,0.0002028,2]
[349399247,1737163840854,-1103.2601,0.00020286,2]
[349399248,1737163840864,-82895.58423418,0.00020291,2]
[349399261,1737163846208,-249.9033128,0.000192,2]
[349399262,1737163846217,-249.9033128,0.000192,2]
[349399263,1737163846227,-249.9033128,0.000192,2]
[349399264,1737163846236,-249.9033128,0.000192,2]
[349399265,1737163846245,-249.9033128,0.000192,2]
[349399266,1737163846255,-249.9033128,0.000192,2]
[349399267,1737163846264,-249.9033128,0.000192,2]
[349399268,1737163846274,-249.9033128,0.000192,2]
[349399269,1737163846283,-249.9033128,0.000192,2]
[349399270,1737163846293,-249.9033128,0.000192,2]
[349399271,1737163846302,-249.9033128,0.000192,2]
[349399272,1737163846311,-249.9033128,0.00019417,2]
[349399273,1737163846320,-249.9033128,0.00019693,2]
[349399274,1737163846330,-249.9033128,0.00019969,2]
[349399275,1737163846339,-1269.0,0.00020197,2]
[349399276,1737163846348,-249.9033128,0.00020245,2]
[349399277,1737163846356,-2563.60262983,0.00020291,2]
[349399296,1737164076135,346.39,0.00010137,2]
[349399300,1737164847135,-346.39,0.00016813,2]
[349399301,1737164847157,-741.8,0.00017496,2]
[349399302,1737164847179,-167.68612909,0.00018677,2]
[349399303,1737164853107,-332.31387091,0.00018677,2]
[349399304,1737164853128,-1321.03666206,0.00019096,2]
[349399307,1737164986146,282.5,0.00010137,2]
[349399337,1737165032485,-282.5,0.00016813,2]
[349399338,1737165032495,-500.0,0.00017736,2]
[349399339,1737165032506,-170.6,0.00018675,2]
[349399340,1737165032517,-667.856848,0.00018754,2]
[349399341,1737165032527,-5402.277,0.000188,3]
[349399342,1737165032537,-300.0,0.00018808,2]
[349399343,1737165032546,-23900.0,0.00018809,2]
[349399344,1737165032555,-829.13,0.00018854,2]
[349399345,1737165032565,-159.78416231,0.00018996,2]
[349399346,1737165032575,-250.0,0.00019056,2]
[349399347,1737165032585,-6251.96333794,0.00019096,2]
[349399348,1737165032594,-369.0,0.00019116,2]
[349399349,1737165032604,-250.0,0.00019209,2]
[349399350,1737165032614,-1000.0,0.00019221,2]
[349399351,1737165032623,-308.83,0.00019234,2]
[349399352,1737165032633,-627.77238283,0.00019248,2]
[349399353,1737165032646,-479.80761717,0.00019248,2]
[349399354,1737165032655,-190.39,0.00019314,2]
[349399355,1737165032669,-500.0,0.00019461,2]
[349399356,1737165032679,-500.0,0.00019461,2]
[349399357,1737165032689,-500.0,0.00019461,2]
[349399358,1737165032698,-500.0,0.00019461,2]
[349399359,1737165032709,-633.30292552,0.00019461,2]
[349399360,1737165032719,-250.0,0.00019496,2]
[349399361,1737165032729,-463.74,0.00019554,2]
[349399362,1737165032739,-1017.58,0.00019566,2]
[349399363,1737165032749,-741.8,0.0001976,2]
[349399364,1737165032758,-1213.635,0.0001978,2]
[349399365,1737165032768,-1265.70991786,0.0001978,2]
[349399366,1737165032780,-529.48110784,0.0001978,2]